bitfinex/quotes_ETHUSD_20220311
["timestamp","ask_amount","ask_price","bid_price","bid_amount"]
[1646996325380,3.5,2601.0,2600.8,2.04589045]
[1646996325578,3.5,2601.0,2600.4,0.38613037]
[1646996325579,0.96109,2601.0,2600.4,0.38613037]
[1646996325776,4.46109,2601.0,2600.9,0.00392932]
[1646996325975,0.96109,2601.0,2600.9,0.00392932]
[1646996326576,1.11400835,2600.7,2600.5,0.01571964]
[1646996326776,1.11400835,2600.7,2600.6,0.96095]
[1646996326978,1.11400835,2600.7,2600.4,0.20965019]
[1646996327777,1.11400835,2600.7,2600.4,0.19393037]
[1646996327980,4.99820835,2600.7,2600.4,0.19393037]
[1646996328178,4.99820835,2600.7,2600.1,0.19393037]
[1646996328380,4.99820835,2600.7,2600.2,0.3]
[1646996328381,1.49820835,2600.7,2600.2,0.3]
[1646996328579,1.49820835,2600.7,2600.1,2.40347379]
[1646996329118,0.3842,2600.5,2599.9,0.3]
[1646996329313,3.8842,2600.6,2600.3,0.00393286]
[1646996329515,5.80656,2600.6,2600.3,0.00393286]
[1646996330313,0.90063571,2600.0,2599.8,0.57424961]
[1646996330516,0.90063571,2600.0,2599.9,0.97686361]
[1646996330517,0.81057214,2600.0,2599.9,0.97686361]
[1646996330913,0.81057214,2600.0,2599.9,3.35869748]
[1646996331416,0.81057214,2600.0,2599.9,3.34296387]
[1646996332317,0.81057214,2600.0,2599.9,0.96113]
[1646996332566,0.81057214,2600.0,2599.8,0.00393325]
[1646996332766,0.3842,2599.9,2599.5,0.58854185]
[1646996332963,0.81057214,2600.0,2599.8,0.00393318]
[1646996333770,1.1062523,2599.5,2599.4,0.01573506]
[1646996333969,1.1062523,2599.5,2599.2,0.96143]
[1646996334174,1.1062523,2599.5,2599.2,3.12402994]
[1646996334568,1.1062523,2599.5,2599.3,2.16259994]
[1646996334768,1.1062523,2599.5,2599.2,0.96143]
[1646996334970,0.3842,2599.9,2599.2,0.96143]
[1646996335170,0.3842,2599.9,2599.2,3.12402994]
[1646996335371,0.3842,2599.9,2599.2,0.96143]
[1646996335571,1.3457,2600.0,2599.2,0.96143]
[1646996335771,1.3457,2600.0,2599.2,3.12402994]
[1646996335972,0.05313035,2599.8,2599.2,0.96143]
[1646996336207,0.05313035,2599.8,2599.3,0.0752671]
[1646996336208,0.95927009,2599.8,2599.3,0.0752671]
[1646996336613,0.95927009,2599.8,2599.6,0.96131]
[1646996337814,0.95927009,2599.8,2599.6,0.96555896]
[1646996338715,0.95927009,2599.8,2599.6,0.96131]
[1646996338916,0.95927009,2599.8,2599.6,0.96555896]
[1646996339419,0.53713384,2599.8,2599.6,0.96555896]
[1646996339983,0.53713384,2599.8,2599.6,0.96131]
[1646996340173,0.53713384,2599.8,2599.6,0.96555896]
[1646996341074,0.53713384,2599.8,2599.6,0.96131]
[1646996341275,0.53713384,2599.8,2599.6,0.96541874]
[1646996342274,0.53713384,2599.8,2599.6,0.96131]
[1646996342674,0.53713384,2599.8,2599.6,0.965115]
[1646996343477,0.53713384,2599.8,2599.6,0.96131]
[1646996343709,0.53713384,2599.8,2599.6,0.965115]
[1646996344719,0.53713384,2599.8,2599.6,0.96131]
[1646996344915,0.53713384,2599.8,2599.6,0.96493089]
[1646996345916,0.53713384,2599.8,2599.6,0.96131]
[1646996346115,0.53713384,2599.8,2599.6,0.96493089]
[1646996346517,0.9615,2600.0,2599.6,0.96493089]
[1646996346818,4.0523,2600.1,2599.6,0.96493089]
[1646996347017,4.0523,2600.1,2599.6,0.96131]
[1646996347467,1.24648412,2600.2,2599.7,0.00365486]
[1646996347468,0.81177296,2600.0,2599.7,0.00365486]
[1646996347660,0.81177296,2600.0,2599.8,1.92237]
[1646996348062,1.24648412,2600.2,2599.8,1.92237]
[1646996348261,0.04128412,2600.2,2599.8,1.92237]
[1646996349264,1.05485668,2600.0,2599.8,1.92237]
[1646996352012,0.04128412,2600.2,2599.8,1.92237]
[1646996357668,0.04999998,2600.3,2599.8,1.92237]
[1646996357867,0.04999998,2600.3,2599.9,0.08624575]
[1646996360722,0.8551095,2600.0,2599.9,0.08624575]
[1646996363356,0.04999998,2600.3,2599.9,0.08624575]
[1646996364460,0.92331557,2600.2,2599.9,0.08624575]
[1646996369824,0.04999998,2600.3,2599.9,0.08624575]
[1646996370280,1.1699,2600.7,2600.0,0.96117]
[1646996370470,7.1703,2600.9,2600.0,0.96117]
[1646996370471,7.1703,2600.9,2600.1,0.07589144]
[1646996370673,7.1703,2600.9,2600.2,1.92171]
[1646996370870,7.1703,2600.9,2600.4,1.02140368]
[1646996371068,4.2854,2600.9,2600.5,0.08734451]
[1646996371269,4.2854,2600.9,2600.6,0.07156586]
[1646996371474,2.24245753,2601.1,2600.6,2.76277704]
[1646996371672,1.07255753,2601.1,2600.7,0.07668628]
[1646996371869,1.07255753,2601.1,2600.7,2.76789746]
[1646996372070,1.07255753,2601.1,2600.8,2.78000069]
[1646996372269,1.07255753,2601.1,2600.9,0.08746161]
[1646996372270,1.06889826,2601.1,2600.9,0.08746161]
[1646996372470,1.06889826,2601.1,2600.9,0.96096]
[1646996372471,1.07255772,2601.1,2600.9,0.96096]
[1646996373470,1.06889826,2601.1,2600.9,0.96096]
[1646996373718,1.07255772,2601.1,2600.9,0.96096]
[1646996373915,0.00365946,2601.1,2600.9,0.96096]
[1646996374717,0.3842,2601.4,2600.9,0.96096]
[1646996374918,0.00365946,2601.1,2600.9,0.96096]
[1646996375218,0.00365946,2601.1,2601.0,2.69121118]
[1646996375518,0.84113929,2601.0,2600.9,0.96096]
[1646996375718,0.84113929,2601.0,2600.8,1.9218]
[1646996375927,0.96098,2601.3,2600.8,1.9218]
[1646996376120,0.0036594,2601.2,2600.8,1.9218]
[1646996376520,0.0036594,2601.2,2600.9,2.69121118]
[1646996376721,0.0036594,2601.2,2600.8,1.9218]
[1646996377122,2.01207933,2601.3,2600.9,2.69121118]
[1646996377322,0.00365939,2601.2,2600.8,1.9218]
[1646996377781,0.00365939,2601.2,2600.9,2.69121118]
[1646996377980,0.00365939,2601.2,2600.8,1.9218]
[1646996378178,2.01207933,2601.3,2600.8,1.9218]
[1646996378378,2.01207933,2601.3,2600.9,2.69121118]
[1646996378582,0.96096,2601.6,2600.9,2.69121118]
[1646996378583,0.00365939,2601.2,2601.0,0.96089]
[1646996379185,0.00365939,2601.2,2601.1,2.76716336]
[1646996379382,4.313,2601.7,2601.1,0.07595218]
[1646996379581,0.81075132,2601.5,2601.1,0.07595218]
[1646996379781,0.81075132,2601.5,2600.8,3.08044925]
[1646996379782,0.00365935,2601.2,2600.8,3.1495174]
[1646996379983,0.00365935,2601.2,2600.9,0.08094716]
[1646996380581,1.77163132,2601.5,2600.9,0.08094716]
[1646996380783,1.77029349,2601.5,2600.9,0.08094716]
[1646996380987,0.00365939,2601.2,2601.0,0.08346879]
[1646996381408,0.00365939,2601.2,2601.1,0.96083]
[1646996381807,0.95954217,2601.5,2601.1,0.96083]
[1646996382208,0.0036593,2601.3,2601.1,0.96083]
[1646996383011,0.95954217,2601.5,2601.1,0.96083]
[1646996383213,0.00365926,2601.3,2601.1,0.96083]
[1646996384215,4.313,2601.7,2601.1,0.96083]
[1646996384616,0.00365924,2601.3,2601.1,0.96083]
[1646996385060,0.00365924,2601.3,2601.2,0.07885689]
[1646996385361,0.00365924,2601.3,2601.2,2.00022689]
[1646996385562,4.313,2601.7,2601.0,0.96089]
[1646996385563,0.96087,2601.4,2601.0,0.96089]
[1646996385765,0.9645292,2601.4,2600.9,0.08259061]
[1646996386766,0.96087,2601.4,2600.9,0.08259061]
[1646996386966,0.00365929,2601.3,2600.9,0.08259061]
[1646996387366,0.00365929,2601.3,2601.0,0.96089]
[1646996387767,0.96087,2601.4,2601.0,0.96089]
[1646996388168,0.003852,2601.3,2601.0,0.96089]
[1646996389015,0.96087,2601.4,2601.0,0.96089]
[1646996389212,0.003852,2601.3,2601.0,0.96089]
[1646996390217,0.96087,2601.4,2600.7,3.08604]
[1646996390416,0.04364521,2601.3,2600.9,0.9609]
[1646996390619,0.04749076,2601.3,2600.9,0.9609]
[1646996391220,0.04749076,2601.3,2600.7,3.08604]
[1646996391416,0.04364521,2601.3,2600.7,3.08604]
[1646996391621,0.8257407,2601.1,2600.7,3.08604]
[1646996391817,0.8257407,2601.1,2600.7,1.92174]
[1646996392223,0.8257407,2601.1,2600.5,2.55101947]
[1646996392224,0.04346459,2601.0,2600.5,2.3909]
[1646996392473,0.04346459,2601.0,2600.1,0.3]
[1646996392760,0.3842,2600.9,2600.2,4.63230734]
[1646996392960,0.04453947,2600.8,2600.2,4.93230734]
[1646996393161,0.80793042,2600.7,2600.3,4.63230734]
[1646996393361,0.04922938,2600.6,2600.3,4.63230734]
[1646996395372,0.04922938,2600.6,2600.3,5.59340734]
[1646996395669,0.04922938,2600.6,2600.4,4.63230734]
[1646996398424,1.92248,2600.6,2600.4,4.63230734]
[1646996398623,0.04928176,2600.5,2600.4,4.63230734]
[1646996399325,0.04928176,2600.5,2599.7,0.00366091]
[1646996399326,1.01088008,2599.9,2599.7,0.00366091]
[1646996399976,1.01088008,2599.9,2599.5,0.96141]
[1646996400163,1.01088008,2599.9,2599.3,1.84676494]
[1646996400363,0.05483206,2599.8,2599.3,1.84676494]
[1646996400564,2.88471,2599.7,2599.3,1.84676494]
[1646996401168,2.88471,2599.7,2599.3,1.83212055]
[1646996402172,0.96155,2599.6,2599.3,1.83212055]
[1646996402573,0.96155,2599.6,2599.4,0.00230998]
[1646996402974,0.0425808,2599.5,2599.4,0.00230998]
[1646996403173,0.99552018,2599.5,2599.4,0.00230998]
[1646996403373,0.99552018,2599.5,2599.3,1.83212055]
[1646996403573,0.31578849,2599.4,2599.3,1.83212055]
[1646996403815,0.31578849,2599.4,2599.3,1.83443058]
[1646996404415,0.35836929,2599.4,2599.3,1.83443058]
[1646996404620,0.35836929,2599.4,2599.3,1.83212055]
[1646996405217,0.35836929,2599.4,2599.1,0.96155]
[1646996405416,0.0425808,2599.4,2599.1,0.96155]
[1646996405617,0.31578849,2599.2,2599.1,0.96155]
[1646996405817,1.91447938,2599.5,2599.1,0.96155]
[1646996406019,0.0425808,2599.3,2599.1,0.96155]
[1646996406218,1.91447938,2599.5,2599.1,0.96387854]
[1646996406620,0.96154,2599.5,2599.1,0.96387854]
[1646996407020,0.96154,2599.5,2599.1,0.96155]
[1646996407223,0.27470728,2599.3,2599.1,0.96155]
[1646996407477,0.96155,2599.6,2599.2,1.9250885]
[1646996408268,0.96155,2599.6,2599.2,1.92276]
[1646996408467,0.96155,2599.6,2599.3,0.00396367]
[1646996408669,0.27470728,2599.4,2599.3,0.00396367]
[1646996409173,0.31728808,2599.4,2599.3,0.00396367]
[1646996409371,2.8363858,2599.4,2599.3,0.00396367]
[1646996409573,3.7978958,2599.4,2599.1,0.96155]
[1646996409777,3.755315,2599.4,2599.2,0.00396245]
[1646996409974,3.48060772,2599.4,2599.2,0.00396245]
[1646996410174,0.27470728,2599.3,2599.2,0.00396245]
[1646996410576,0.31728808,2599.3,2599.2,0.00396245]
[1646996410776,1.27882808,2599.3,2599.1,0.96155]
[1646996410975,1.23624728,2599.3,2599.1,0.96551254]
[1646996411213,0.96154,2599.3,2599.1,0.96551254]
[1646996411813,0.27470728,2599.2,2599.1,0.96155]
[1646996412013,0.31728808,2599.2,2599.1,0.96155]
[1646996412216,0.31728808,2599.2,2599.1,1.26551258]
[1646996412419,0.31728808,2599.2,2599.1,3.14426419]
[1646996412817,0.31728808,2599.2,2599.1,4.14426419]
[1646996413015,0.31728808,2599.2,2599.1,2.26155]
[1646996413219,0.31728808,2599.2,2599.1,3.98363246]
[1646996413418,0.31728808,2599.2,2599.1,2.10488085]
[1646996413616,0.31728808,2599.2,2599.1,1.26155]
[1646996414819,2.8363858,2599.2,2599.1,1.26155]
[1646996415867,2.34368773,2599.2,2599.1,1.26155]
[1646996416269,2.34368773,2599.2,2599.1,0.96155]
[1646996419715,1.25954886,2599.2,2599.1,0.96155]
[1646996419912,2.34368773,2599.2,2599.1,0.96155]
[1646996425772,2.05866174,2599.2,2599.1,0.96155]
[1646996426214,1.08413887,2599.2,2599.1,0.96155]
[1646996426415,1.08413887,2599.2,2598.8,1.92309]
[1646996426416,2.05866174,2599.2,2598.8,1.92309]
[1646996426614,2.05866174,2599.2,2599.0,0.00392154]
[1646996426615,3.02030174,2599.2,2599.0,0.00392154]
[1646996427016,1.93616287,2599.2,2599.0,0.00392154]
[1646996427214,1.08413887,2599.1,2599.0,0.00392154]
[1646996427414,1.08413887,2599.1,2598.8,2.22309]
[1646996427814,1.08413887,2599.1,2599.0,0.00392158]
[1646996428719,1.08413887,2599.1,2598.8,2.22309]
[1646996428918,1.08413887,2599.1,2598.9,0.00392162]
[1646996430067,1.08413887,2599.1,2598.8,2.22309]
[1646996430269,1.08413887,2599.1,2598.9,0.00392167]
[1646996431067,1.08413887,2599.1,2598.8,2.22309]
[1646996431267,1.08413887,2599.1,2599.0,0.96153]
[1646996431472,1.08413887,2599.1,2598.9,0.00392167]
[1646996431672,2.05866174,2599.1,2598.9,0.00392167]
[1646996432272,0.97452287,2599.1,2598.8,1.92309]
[1646996432472,0.97452287,2599.1,2598.9,0.00392167]
[1646996432473,1.08413887,2599.0,2598.9,0.00392167]
[1646996433573,1.08413887,2599.0,2598.8,1.92309]
[1646996435027,1.08413887,2599.0,2598.8,1.92701176]
[1646996435828,1.08413887,2599.0,2598.8,1.92309]
[1646996436231,1.08413887,2599.0,2598.8,1.92701176]
[1646996437029,0.97452287,2598.9,2598.8,1.92309]
[1646996437229,0.85815907,2598.9,2598.8,1.92309]
[1646996437477,0.85815907,2598.9,2598.8,1.92701176]
[1646996437769,1.94229794,2598.9,2598.8,0.00392176]
[1646996438368,1.94229794,2598.9,2598.7,1.92316]
[1646996438573,1.94229794,2598.9,2598.7,1.92717933]
[1646996439171,0.54634812,2599.4,2598.9,1.153]
[1646996439373,0.3847,2600.0,2599.5,0.7372349]
[1646996439674,0.3847,2600.0,2599.7,0.07885585]
[1646996439873,4.157733,2600.8,2599.9,1.153]
[1646996439874,0.00401638,2600.7,2599.9,1.153]
[1646996440073,0.00401638,2600.7,2600.1,1.153]
[1646996440273,0.00401638,2600.7,2600.2,1.22385724]
[1646996440572,0.00401638,2600.7,2600.3,0.08584289]
[1646996440776,1.2015,2601.3,2600.4,1.153]
[1646996440972,0.0040172,2600.7,2600.5,0.06953204]
[1646996441221,0.0040172,2600.7,2600.6,3.37442]
[1646996441421,1.44758572,2601.4,2601.1,1.153]
[1646996441921,0.04771921,2601.3,2601.1,1.153]
[1646996442524,0.04771921,2601.3,2601.2,1.153]
[1646996443125,2.54388958,2601.3,2601.2,1.153]
[1646996443324,5.8842,2601.2,2600.5,1.153]
[1646996443525,5.8842,2601.2,2600.6,1.153]
[1646996443526,3.12044979,2601.1,2600.6,1.153]
[1646996443731,0.05306016,2600.9,2600.6,1.153]
[1646996443926,1.5764,2600.9,2600.6,1.153]
[1646996444126,0.04818973,2600.7,2600.6,1.153]
[1646996444426,0.50918973,2600.7,2600.6,1.153]
[1646996444626,0.50918973,2600.7,2600.6,0.7688]
[1646996448922,15.81183574,2600.7,2600.6,0.7688]
[1646996449122,15.81183574,2600.7,2599.6,1.92266]
[1646996449123,0.04227993,2600.5,2599.6,1.92266]
[1646996449321,1.96522993,2600.5,2599.6,1.92266]
[1646996449520,1.96522993,2600.5,2599.3,0.00125448]
[1646996449521,1.92295,2600.5,2599.9,0.00422815]
[1646996449719,0.05253443,2600.3,2599.9,0.00422815]
[1646996450323,0.05253443,2600.3,2599.4,2.73006489]
[1646996450324,1.09960462,2599.8,2599.4,2.73006489]
[1646996450525,1.09960462,2599.8,2599.3,0.96153]
[1646996450924,1.09960462,2599.8,2599.2,0.08834354]
[1646996451923,0.05197688,2599.7,2599.1,3.84462]
[1646996452124,0.96161,2599.7,2599.2,0.96156]
[1646996454080,0.96161,2599.7,2599.4,0.081368]
[1646996454677,1.09258184,2599.5,2599.4,0.081368]
[1646996458131,1.14388284,2599.5,2599.4,0.081368]
[1646996459136,1.17833319,2599.5,2599.3,0.00405002]
[1646996459971,1.17833319,2599.5,2598.7,2.22328]
[1646996459972,1.92341,2599.4,2598.7,2.22328]
[1646996460168,0.87991225,2599.1,2598.9,0.0162027]
[1646996460369,2.88512,2599.4,2598.9,0.9778627]
[1646996460768,2.88512,2599.4,2599.0,0.32861055]
[1646996461370,2.88512,2599.4,2599.1,0.00405025]
[1646996461571,1.13292888,2599.2,2599.1,0.00405025]
[1646996462070,2.88512,2599.4,2599.1,0.00405025]
[1646996462276,0.99615035,2599.5,2599.1,0.32861055]
[1646996462477,0.03445035,2599.5,2599.3,0.32861055]
[1646996462875,0.03445035,2599.5,2599.3,0.41916165]
[1646996463277,0.03445035,2599.5,2599.4,0.32861055]
[1646996463719,0.04999999,2600.0,2599.4,0.41060315]
[1646996463922,0.04999999,2600.0,2599.6,0.32861055]
[1646996464327,0.04999999,2600.0,2599.7,0.32861055]
[1646996464725,2.02306739,2600.0,2599.7,0.32861055]
[1646996465125,2.32306739,2600.0,2599.7,0.33246893]
[1646996465324,1.08607025,2599.9,2599.8,0.32861055]
[1646996467128,0.04999999,2600.0,2599.8,0.32861055]
[1646996467326,0.04999999,2600.0,2599.9,0.32861055]
[1646996467594,0.60863175,2600.2,2599.9,0.32861055]
[1646996468396,0.60863175,2600.2,2600.0,0.32861055]
[1646996468595,1.13269543,2600.1,2600.0,0.32861055]
[1646996468795,1.18354556,2600.1,2600.0,0.32861055]
[1646996469096,2.09409543,2600.1,2600.0,0.32861055]
[1646996469395,5.5,2600.0,2599.9,0.00386812]
[1646996469601,5.8842,2600.0,2599.1,0.08973827]
[1646996469899,5.8842,2600.0,2599.3,0.01547315]
[1646996469900,0.96158,2599.8,2599.3,0.01547315]
[1646996470097,2.10487182,2599.7,2599.4,0.96147]
[1646996470299,2.10487182,2599.7,2599.5,1.01819624]
[1646996471098,2.10487182,2599.7,2599.5,0.0038678]
[1646996472127,2.10487182,2599.7,2599.1,0.08973827]
[1646996472325,0.96162,2599.6,2599.5,0.00384898]
[1646996472528,2.8848,2599.7,2599.5,0.00384898]
[1646996473330,2.8848,2599.7,2599.3,0.08009255]
[1646996473529,2.8848,2599.7,2599.5,0.00384903]
[1646996473729,1.12840718,2599.6,2599.5,0.00384903]
[1646996473932,1.15037721,2599.6,2599.5,0.00384903]
[1646996474529,2.11188721,2599.6,2599.3,0.08009255]
[1646996474732,2.11188721,2599.6,2599.4,0.00384907]
[1646996475577,2.11188721,2599.6,2599.3,1.09828879]
[1646996475976,0.02197003,2599.6,2599.5,1.01819624]
[1646996478185,0.02197003,2599.6,2599.4,0.07122009]
[1646996478383,0.02197003,2599.6,2599.4,0.07497422]
[1646996478826,0.02617799,2599.5,2599.4,0.07497422]
[1646996479627,0.02617799,2599.5,2599.4,0.07122009]
[1646996480629,0.02617799,2599.5,2599.4,1.08941633]
[1646996481627,0.02617799,2599.5,2599.4,0.07122009]
[1646996481827,0.9616,2599.4,2599.0,1.10648935]
[1646996482026,0.9616,2599.4,2599.3,0.00376022]
[1646996482027,1.87918888,2599.4,2599.3,0.00376022]
[1646996482780,1.87918888,2599.4,2599.1,0.08711058]
[1646996483174,1.87918888,2599.4,2599.2,0.00376013]
[1646996483978,1.87918888,2599.4,2599.1,0.08711058]
[1646996484579,1.87918888,2599.4,2599.2,0.00375986]
[1646996485180,2.84077888,2599.4,2599.1,0.08711058]
[1646996485579,2.84077888,2599.4,2599.2,0.00375986]
[1646996487032,2.84077888,2599.4,2599.2,0.00374862]
[1646996488033,2.84077888,2599.4,2599.2,0.00749727]
[1646996488230,2.84077888,2599.4,2599.2,0.00374865]
[1646996489031,0.0243986,2599.3,2599.2,0.00374865]
[1646996490072,0.0243986,2599.3,2599.0,1.01819624]
[1646996490271,1.9479686,2599.3,2599.1,0.00365526]
[1646996491277,1.9479686,2599.3,2599.0,1.01819624]
[1646996492677,4.5,2599.2,2598.8,0.07879285]
[1646996492877,0.96193,2599.0,2598.5,0.0846411]
[1646996493481,1.26193,2599.0,2598.5,0.0846411]
[1646996493929,0.96191,2598.9,2598.5,0.0846411]
[1646996494725,0.96191,2598.9,2598.6,0.07598644]
[1646996495125,0.96191,2598.9,2598.6,0.08017131]
[1646996495323,1.26191,2598.9,2598.6,0.08017131]
[1646996496123,1.26191,2598.9,2598.6,0.07598644]
[1646996496528,1.26191,2598.9,2598.6,0.08017126]
[1646996496728,0.96191,2598.9,2598.6,0.08017126]
[1646996497326,0.96191,2598.9,2598.6,0.07598644]
[1646996497573,0.96191,2598.9,2598.6,0.08017126]
[1646996498372,0.96191,2598.9,2598.6,0.07598644]
[1646996498775,0.99841219,2598.8,2598.6,0.08017126]
[1646996499575,0.99841219,2598.8,2598.6,0.07598644]
[1646996499977,0.99841219,2598.8,2598.6,0.08009284]
[1646996500777,0.99841219,2598.8,2598.6,0.07598644]
[1646996501234,0.99841219,2598.8,2598.6,0.079787]
[1646996503321,2.13858809,2598.8,2598.6,0.07598644]
[1646996503522,2.13858809,2598.8,2598.6,0.07957225]
[1646996503928,0.99841219,2598.8,2598.6,0.07957225]
[1646996504528,0.99841219,2598.8,2598.6,0.07598644]
[1646996504732,0.99841219,2598.8,2598.6,0.00358581]
[1646996505574,0.99841219,2598.8,2598.3,0.1923]
[1646996505774,2.73301521,2598.7,2598.3,0.1923]
[1646996505973,4.65667521,2598.7,2598.6,0.0036256]
[1646996506377,3.84735,2598.7,2598.6,0.0036256]
[1646996506778,3.84735,2598.7,2598.4,0.0821738]
[1646996507178,3.84735,2598.7,2598.5,0.00361937]
[1646996507378,1.92369,2598.7,2598.5,0.00361937]
[1646996507979,1.92369,2598.7,2598.4,0.0821738]
[1646996508179,1.96024219,2598.8,2598.4,2.0055538]
[1646996508380,1.96024219,2598.8,2598.5,1.05033832]
[1646996508582,1.96024219,2598.8,2598.6,0.08657104]
[1646996509626,2.83992022,2598.8,2598.6,0.09018666]
[1646996510429,2.83992022,2598.8,2598.6,0.08657104]
[1646996510834,2.83992022,2598.8,2598.6,0.09018448]
[1646996511430,2.83992022,2598.8,2598.6,0.00361344]
[1646996511637,2.83992022,2598.8,2598.3,0.27843388]
[1646996512031,1.92367,2598.7,2598.6,0.00361344]
[1646996512877,1.92367,2598.7,2598.4,0.96182]
[1646996513078,1.92367,2598.7,2598.5,0.00361392]
[1646996513879,1.96019675,2598.7,2598.5,0.00361392]
[1646996514183,1.96019675,2598.7,2598.3,1.24025388]
[1646996514380,1.96019675,2598.7,2598.5,0.00361436]
[1646996515181,2.25864181,2598.7,2598.3,1.24025388]
[1646996515583,2.25864181,2598.7,2598.5,0.00361436]
[1646996516230,1.95864181,2598.7,2598.5,0.00361436]
[1646996516521,1.95864181,2598.7,2598.3,1.24025388]
[1646996516728,1.95864181,2598.7,2598.5,0.00361431]
[1646996517726,1.95864181,2598.7,2598.3,1.04795388]
[1646996517928,1.95864181,2598.7,2598.5,0.00361425]
[1646996518930,0.03652675,2598.7,2598.3,1.04795388]
[1646996519128,0.03652675,2598.7,2598.5,0.00361425]
[1646996520173,0.03652675,2598.7,2598.4,0.08006936]
[1646996520471,0.03652675,2598.7,2598.5,0.00361426]
[1646996521071,1.96006675,2598.7,2598.5,0.00361426]
[1646996521271,1.96006675,2598.7,2598.4,0.08006936]
[1646996521572,1.96006675,2598.7,2598.5,0.00361427]
[1646996522171,2.26006675,2598.7,2598.5,0.00361427]
[1646996522570,2.26006675,2598.7,2598.4,0.08006936]
[1646996522773,2.26006675,2598.7,2598.5,0.00361427]
[1646996522974,2.26006675,2598.7,2598.2,0.017226]
[1646996522975,5.0,2598.5,2598.2,0.017226]
[1646996523179,3.5,2598.6,2598.2,0.017226]
[1646996523373,3.5,2598.6,2598.1,0.01445923]
[1646996523374,1.01450796,2598.4,2598.1,0.01445923]
[1646996523828,1.01450796,2598.4,2597.9,0.96199]
[1646996524028,0.9198021,2598.3,2597.9,0.96199]
[1646996524225,0.9198021,2598.3,2597.6,0.0141098]
[1646996524226,5.5,2598.1,2597.6,0.0141098]
[1646996524426,0.04463896,2597.9,2597.6,0.0141098]
[1646996524630,1.68137,2598.1,2597.6,0.0141098]
[1646996524825,1.26207,2598.1,2597.6,0.0141098]
[1646996525024,0.96207,2598.1,2597.6,0.0141098]
[1646996525324,0.96207,2598.1,2597.6,0.0163629]
[1646996525325,0.04285901,2598.0,2597.6,0.0163629]
[1646996525527,1.00212046,2597.7,2597.6,0.0163629]
[1646996526128,1.00212046,2597.7,2597.6,0.0141098]
[1646996528077,0.96209,2597.8,2597.6,0.9761498]
[1646996528479,0.96209,2597.8,2597.4,1.9241]
[1646996528480,3.5,2597.7,2597.4,1.9241]
[1646996528680,4.0,2597.5,2597.2,0.01572409]
[1646996528883,5.92455,2597.5,2597.3,0.018352]
[1646996529081,3.5,2597.4,2597.2,0.01572409]
[1646996529479,1.02216476,2597.3,2597.2,0.01572409]
[1646996529679,1.02216476,2597.3,2596.9,0.08011569]
[1646996529885,0.96226,2597.2,2596.9,0.08011569]
[1646996530281,0.96226,2597.2,2596.8,1.04541159]
[1646996530482,0.96226,2597.2,2596.8,0.0048452]
[1646996530983,1.00954181,2596.9,2596.8,0.0048452]
[1646996531232,0.96234,2597.1,2596.8,0.0048452]
[1646996531233,0.3,2597.0,2596.8,0.0048452]
[1646996531521,0.96234,2597.1,2596.8,0.0048452]
[1646996531522,3.18704,2597.1,2596.8,0.0048452]
[1646996531821,2.88704,2597.1,2596.8,0.0048452]
[1646996532022,3.18704,2597.1,2596.8,0.0048452]
[1646996532322,3.18704,2597.1,2596.8,0.00903179]
[1646996532526,0.96903815,2597.0,2596.8,0.00903179]
[1646996533322,0.96903815,2597.0,2596.8,0.0048452]
[1646996533622,0.96903815,2597.0,2596.8,0.00903184]
[1646996533827,4.0,2596.9,2596.7,0.00609]
[1646996534972,3.5,2596.8,2596.7,0.00609]
[1646996535180,6.46254,2596.7,2596.5,0.0114092]
[1646996535574,6.46254,2596.7,2596.6,92.5708538]
[1646996535575,18.18254,2596.7,2596.6,92.5708538]
[1646996535777,18.18254,2596.7,2596.6,76.0135338]
[1646996535778,12.87514,2596.7,2596.6,76.0135338]
[1646996535977,1.15514,2596.7,2596.6,76.0135338]
[1646996536186,0.96254,2596.7,2596.6,76.5135338]
[1646996536378,0.01790421,2597.1,2596.6,76.5135338]
[1646996536379,1.94223421,2597.1,2596.7,0.08456732]
[1646996536577,1.94223421,2597.1,2596.9,0.5]
[1646996536578,0.98007421,2597.1,2596.9,0.5]
[1646996537379,1.94233421,2597.1,2596.9,0.5]
[1646996537578,1.94233421,2597.1,2597.0,0.5]
[1646996537579,1.28007421,2597.1,2597.0,0.5]
[1646996537781,1.13235558,2597.1,2597.0,0.5]
[1646996538177,0.83235558,2597.1,2597.0,0.5]
[1646996538385,0.83235558,2597.1,2595.8,2.88205315]
[1646996538386,6.46244,2596.8,2595.8,2.88205315]
[1646996538590,3.961,2596.7,2595.7,0.006868]
[1646996538843,3.961,2596.7,2595.9,0.19393037]
[1646996538844,0.01200005,2596.2,2595.9,0.19393037]
[1646996539042,2.5,2596.0,2595.8,100.0]
[1646996539243,0.461,2595.9,2595.6,3.6e-05]
[1646996539441,3.6925,2595.8,2595.6,3.6e-05]
[1646996539641,0.461,2595.7,2595.6,3.6e-05]
[1646996539839,5.5,2595.6,2595.4,0.0062184]
[1646996540039,0.461,2595.5,2595.4,0.0062184]
[1646996540447,0.461,2595.8,2595.5,3.75947319]
[1646996540645,1.0,2596.0,2595.6,3.5]
[1646996540838,0.8578166,2596.0,2595.9,0.01267657]
[1646996541039,1.96078308,2596.7,2596.1,0.75947319]
[1646996541243,1.96078308,2596.7,2596.4,0.75947319]
[1646996541438,2.77523445,2596.7,2596.4,0.75947319]
[1646996541650,1.92491,2596.6,2596.4,0.75947319]
[1646996541840,2.38591,2596.6,2596.5,1.153]
[1646996542139,17.22,2596.5,2596.3,0.00416212]
[1646996542343,11.72,2596.2,2595.6,0.01665266]
[1646996542583,12.181,2596.1,2595.6,0.01665266]
[1646996542881,12.181,2596.1,2595.4,1.0062184]
[1646996542882,17.22,2596.0,2595.4,1.0062184]
[1646996543084,11.72,2595.8,2595.4,1.0062184]
[1646996543279,0.9631,2595.5,2595.4,0.0124368]
[1646996543480,12.181,2595.5,2595.4,0.0124368]
[1646996543678,12.6366,2595.5,2595.4,0.0124368]
[1646996543884,5.5,2595.4,2595.0,0.2072211]
[1646996544283,5.5,2595.4,2595.0,0.0147211]
[1646996544485,12.181,2595.3,2595.0,0.0147211]
[1646996544686,14.0094882,2595.3,2595.0,0.0147211]
[1646996544884,4.0550682,2595.3,2595.0,0.0147211]
[1646996545283,3.7550682,2595.3,2595.0,0.0147211]
[1646996545486,4.0550682,2595.3,2595.0,0.0147211]
[1646996545688,0.96328,2595.2,2595.0,0.0147211]
[1646996545884,0.06270821,2595.1,2595.0,0.0147211]
[1646996548527,0.06270821,2595.1,2595.0,0.5147211]
[1646996548727,0.06270821,2595.1,2595.0,0.7647211]